bitfinex/quotes_ETHUSD_20241023
["timestamp","ask_amount","ask_price","bid_price","bid_amount"]
[1729696288662,0.04998963,2559.5,2559.1,0.8045]
[1729696288868,3.90733,2559.3,2558.7,0.7688]
[1729696289167,0.09768751,2559.5,2558.8,3.96666831]
[1729696289469,0.09768751,2559.5,2558.9,3.90792]
[1729696289634,0.0501259,2559.4,2558.9,3.98606603]
[1729696289952,0.0501259,2559.4,2558.9,3.90792]
[1729696290165,0.0501259,2559.4,2559.0,3.90776]
[1729696290332,0.0501259,2559.4,2559.1,3.90758]
[1729696290537,0.0501259,2559.4,2559.2,3.98551119]
[1729696290730,3.90665,2559.8,2559.3,0.7757]
[1729696290945,0.7547,2560.1,2559.0,0.7757]
[1729696290946,3.90698,2559.6,2559.0,0.7757]
[1729696291148,0.09767198,2559.5,2559.0,0.7757]
[1729696291336,3.90698,2559.6,2559.1,0.07814335]
[1729696291535,0.05018833,2559.4,2559.1,0.07814335]
[1729696291755,3.90715,2559.5,2559.0,0.7757]
[1729696291960,0.05018833,2559.3,2559.0,0.7757]
[1729696292163,3.90715,2559.5,2559.0,4.68346]
[1729696292323,0.05018833,2559.2,2559.1,0.07814331]
[1729696292523,3.90697,2559.6,2559.1,0.07814331]
[1729696292773,0.05018833,2559.2,2559.1,0.07814331]
[1729696292975,3.90664,2559.8,2559.3,3.90723]
[1729696293128,3.90664,2559.8,2559.4,0.05859907]
[1729696293324,4.3968288,2560.3,2559.8,3.90653]
[1729696293530,4.71445,2560.9,2559.8,3.90653]
[1729696293531,3.90573,2560.4,2559.8,3.90653]
[1729696293770,7.81109,2560.5,2560.0,4.69614]
[1729696293947,3.90552,2560.5,2560.0,0.7899]
[1729696294435,3.90565,2560.4,2560.0,0.7899]
[1729696294776,3.90558,2560.5,2560.0,4.69614]
[1729696295276,7.81116,2560.5,2560.0,4.69614]
[1729696295437,7.81115,2560.5,2560.0,4.69614]
[1729696295637,3.90557,2560.5,2560.0,0.7899]
[1729696295870,3.90557,2560.5,2560.0,4.69614]
[1729696296298,3.90588,2560.3,2560.0,0.7899]
[1729696296454,0.09765431,2560.2,2559.6,7.73606]
[1729696296633,3.90622,2560.1,2559.6,7.73606]
[1729696297360,0.09765632,2560.2,2559.7,3.98481507]
[1729696297575,7.81176,2560.3,2559.7,3.98481507]
[1729696297861,4.00361629,2560.2,2559.7,0.07812507]
[1729696298065,3.90596,2560.2,2559.7,0.07812507]
[1729696298374,4.00361634,2560.2,2559.7,0.07812507]
[1729696298582,3.90612,2560.1,2559.6,0.8293]
[1729696298737,3.90612,2560.1,2559.7,0.07812508]
[1729696299049,3.90612,2560.1,2559.6,7.7361]
[1729696299232,7.81236,2560.1,2559.6,3.8293]
[1729696299438,3.90612,2560.1,2559.6,3.8293]
[1729696299632,7.81233,2560.1,2559.6,3.8293]
[1729696299835,4.66323,2560.3,2559.6,3.90742723]
[1729696300038,0.61140168,2560.4,2559.6,1.30502986]
[1729696300238,0.61140168,2560.4,2560.3,0.8287]
[1729696300483,0.61140168,2560.4,2560.3,4.73449]
[1729696300686,3.9051,2560.8,2560.3,4.73449]
[1729696300844,0.09763496,2560.7,2560.3,4.73449]
[1729696301039,3.90534,2560.6,2560.3,0.8287]
[1729696301307,3.90579,2560.3,2560.2,0.05858498]
[1729696301475,4.00344326,2560.3,2560.2,0.05858498]
[1729696302375,3.90579,2560.3,2559.9,3.0]
[1729696302689,3.90579,2560.3,2560.0,0.05858341]
[1729696303390,3.90609,2560.1,2560.0,0.05858341]
[1729696303682,0.04667515,2560.1,2560.0,0.05858341]
[1729696305146,3.95276515,2560.1,2560.0,0.05858341]
[1729696305546,0.04667515,2560.1,2560.0,0.05858341]
[1729696305792,3.90663,2559.8,2559.2,8.57912]
[1729696305993,3.90663,2559.8,2559.2,4.67176]
[1729696305994,4.00429353,2559.8,2559.2,4.67176]
[1729696306147,0.04655607,2559.7,2559.2,4.67176]
[1729696306373,0.14423189,2559.7,2559.2,0.7644]
[1729696306573,3.90686,2559.6,2559.2,0.7644]
[1729696306810,0.09767587,2559.5,2559.3,0.05860118]
[1729696306978,3.90679,2559.7,2559.3,0.05860118]
[1729696306979,0.04640861,2559.4,2559.3,0.05860118]
[1729696307175,4.00455039,2559.6,2559.3,0.05860118]
[1729696307395,0.04640861,2559.5,2559.3,0.05860118]
[1729696307792,3.95343861,2559.5,2559.3,0.05860118]
[1729696307987,7.86058861,2559.5,2559.3,0.05860118]
[1729696308233,0.09768157,2559.4,2559.3,0.05860118]
[1729696308522,4.05115941,2559.4,2559.3,0.05860118]
[1729696312217,4.85755941,2559.4,2559.3,0.05860118]
[1729696312418,4.85755941,2559.4,2557.9,3.90938]
[1729696312419,3.90845,2558.6,2558.0,3.90918]
[1729696312667,0.7804,2558.9,2557.8,0.8098]
[1729696312668,3.90893,2558.3,2557.8,0.8098]
[1729696312858,4.05192391,2558.5,2557.9,3.90937]
[1729696313057,4.05192391,2558.5,2557.8,0.8098]
[1729696313058,0.14329391,2558.5,2557.8,0.8098]
[1729696313372,3.90893,2558.3,2557.9,0.05863053]
[1729696313652,3.9093,2558.0,2557.9,0.05863053]
[1729696313858,4.73377753,2558.2,2557.9,0.05863053]
[1729696313859,0.04533627,2558.2,2557.9,0.05863053]
[1729696314011,0.04513759,2558.0,2557.9,0.05863053]
[1729696314215,4.00676865,2558.2,2557.9,0.05863053]
[1729696314538,0.04512055,2558.0,2557.9,0.05863053]
[1729696314742,3.90916,2558.1,2557.9,0.05863053]
[1729696314920,0.04493885,2558.0,2557.9,0.05863053]
[1729696319346,0.04493885,2558.0,2557.9,5.32788053]
[1729696319682,3.90838,2558.6,2557.9,6.25944068]
[1729696319840,0.04140822,2558.0,2557.9,6.25944068]
[1729696320045,4.00609813,2558.6,2558.0,3.9093]
[1729696320348,3.90859,2558.5,2558.0,3.9093]
[1729696320568,3.90872,2558.4,2557.9,1.79999068]
[1729696320743,4.0066628,2558.3,2557.9,0.05863053]
[1729696320944,7.91564411,2558.3,2557.9,0.05863053]
[1729696321155,0.09773411,2558.2,2557.9,0.05863053]
[1729696321342,4.00675411,2558.2,2557.9,0.05863053]
[1729696321564,3.90918,2558.1,2557.9,0.05863053]
[1729696321778,3.9093,2558.0,2557.9,0.05863053]
[1729696321943,3.9093,2558.0,2556.9,3.9209]
[1729696321944,3.90977,2557.7,2557.2,3.91052]
[1729696322144,3.90992,2557.6,2557.2,0.391052]
[1729696322351,4.00789014,2557.5,2557.2,0.391052]
[1729696322786,3.91035,2557.4,2556.9,0.7723]
[1729696322984,4.00811085,2557.4,2556.9,0.7723]
[1729696323386,3.90992,2557.6,2556.9,0.7723]
[1729696323597,3.91034,2557.4,2556.9,4.68327]
[1729696323908,3.91034,2557.4,2557.0,0.05864754]
[1729696324398,3.91059,2557.2,2557.0,0.05864754]
[1729696324602,0.09777079,2557.5,2556.7,3.91117]
[1729696324760,3.91057,2557.2,2556.7,0.466757]
[1729696324956,3.91091,2557.0,2556.6,0.7564]
[1729696325193,0.0977769,2557.0,2556.6,4.66774]
[1729696325395,0.09777881,2557.1,2556.7,3.91127]
[1729696325573,0.09777881,2557.1,2556.6,0.7564]
[1729696325772,0.09777881,2557.1,2556.6,4.66771]
[1729696325773,4.00845881,2557.1,2556.6,4.66771]
[1729696326161,3.9109,2557.0,2556.6,0.7564]
[1729696326475,0.09777881,2557.1,2556.7,0.05865796]
[1729696326476,4.00846881,2557.1,2556.7,0.05865796]
[1729696326704,3.91086,2557.0,2556.7,0.05865796]
[1729696326904,3.91084,2557.0,2556.7,0.05865796]
[1729696327056,3.91069,2557.1,2556.7,0.05865796]
[1729696327386,3.91085,2557.0,2556.7,0.05865796]
[1729696327755,4.00862879,2557.0,2556.7,0.05865796]
[1729696328002,3.91113,2556.8,2556.7,0.05865796]
[1729696328163,4.00891376,2556.8,2556.7,0.05865796]
[1729696329502,4.81571376,2556.8,2556.7,0.05865796]
[1729696331280,4.71893,2557.1,2556.7,0.05865796]
[1729696331613,3.91113,2556.9,2556.7,0.45566576]
[1729696331814,4.00891292,2556.8,2556.7,0.05865796]
[1729696332314,3.91113,2556.9,2556.7,0.05865796]
[1729696332516,3.91108,2556.9,2556.7,0.05865796]
[1729696332717,7.82217,2556.9,2556.7,0.05865796]
[1729696332923,3.91113,2556.8,2556.7,0.05865796]
[1729696333080,4.00891826,2556.8,2556.7,0.05865796]
[1729696333517,4.04941707,2556.8,2556.4,0.7806]
[1729696333817,0.04049881,2556.8,2556.5,3.98978228]
[1729696333979,0.04049881,2556.8,2556.5,0.07823228]
[1729696334325,0.03970243,2556.7,2556.6,0.05866105]
[1729696334817,0.09777838,2557.0,2556.6,0.05866105]
[1729696335001,0.03970243,2556.7,2556.6,0.05866105]
[1729696335210,3.91129,2556.7,2556.6,0.05866105]
[1729696335379,4.04878299,2556.7,2556.6,0.05866105]
[1729696336608,4.04878299,2556.7,2556.2,3.91198]
[1729696336775,3.91151,2556.6,2556.1,4.71508]
[1729696337215,0.0977944,2556.5,2556.1,0.803]
[1729696337532,0.13749683,2556.5,2556.1,0.803]
[1729696337829,0.03970243,2556.5,2556.2,0.05867414]
[1729696337988,4.0093186,2556.6,2556.2,0.05867414]
[1729696338430,0.03970243,2556.5,2556.2,0.05867414]
[1729696339295,0.03970243,2556.5,2556.2,3.97062414]
[1729696339833,3.95129243,2556.5,2556.2,0.05867414]
[1729696340191,3.95129243,2556.5,2556.3,3.9118]
[1729696340192,0.03970243,2556.5,2556.3,3.9118]
[1729696340404,0.03970243,2556.5,2556.4,3.98998335]
[1729696340692,0.03970243,2556.5,2556.3,4.78036441]
[1729696340693,3.91125,2556.8,2556.3,0.86856441]
[1729696340931,0.03816844,2556.5,2556.3,3.91189]
[1729696341238,0.0977848,2556.7,2556.3,3.91189]
[1729696341425,0.03684503,2556.4,2556.2,3.97071414]
[1729696341607,0.0977848,2556.7,2556.3,3.91189]
[1729696341796,3.91121,2556.8,2556.3,3.91189]
[1729696341996,3.91085,2557.0,2556.4,3.9116]
[1729696342196,0.09778478,2556.9,2556.4,3.91175]
[1729696342392,4.00877478,2556.9,2556.4,7.82334]
[1729696342835,4.00877478,2556.9,2556.4,7.82333]
[1729696343041,3.91121,2556.8,2556.3,4.78826453]
[1729696343193,3.91144,2556.6,2556.3,0.87639453]
[1729696343399,3.9114,2556.7,2556.2,4.04882501]
[1729696343639,3.91147,2556.6,2556.2,0.13690501]
[1729696343811,7.92082973,2556.6,2556.2,0.05867414]
[1729696344011,3.91147,2556.6,2556.2,0.05867414]
[1729696344341,3.91149,2556.6,2556.2,0.05867414]
[1729696344629,0.90259243,2556.6,2556.1,0.803]
[1729696344838,3.91182,2556.4,2556.1,0.803]
[1729696345043,4.00961893,2556.4,2556.1,0.803]
[1729696345201,0.09779893,2556.4,2556.1,0.803]
[1729696345398,7.92111893,2556.5,2556.1,0.803]
[1729696345596,4.00962894,2556.4,2556.1,0.803]
[1729696346407,4.00962894,2556.4,2556.2,0.05867639]
[1729696346639,3.9119,2556.3,2555.8,3.7737]
[1729696346848,3.91203,2556.3,2555.8,7.68629]
[1729696347027,3.91203,2556.3,2555.8,8.85401877]
[1729696347234,3.91198,2556.3,2555.8,4.94142877]
[1729696347741,3.91198,2556.3,2555.9,0.05867993]
[1729696347948,3.91205,2556.2,2555.9,0.05867993]
[1729696348144,3.9119,2556.3,2555.9,0.05867993]
[1729696348309,3.91187,2556.4,2555.9,4.04937295]
[1729696348506,0.0367767,2556.2,2555.9,0.13692295]
[1729696348726,3.91187,2556.4,2555.9,4.04943295]
[1729696348909,0.0367767,2556.1,2555.9,4.04943295]
[1729696349243,3.91187,2556.4,2555.9,5.33971612]
[1729696349421,0.0367767,2556.0,2555.9,5.33971612]
[1729696349623,3.91187,2556.4,2555.9,5.33971612]
[1729696349806,0.0367767,2556.0,2555.9,5.33971612]
[1729696350007,3.91187,2556.4,2555.9,5.33971612]
[1729696350461,0.0367767,2556.3,2555.9,1.42728612]
[1729696350654,3.91206,2556.2,2555.9,1.42728612]
[1729696350927,3.9488367,2556.2,2555.9,0.05867993]
[1729696351123,3.91221,2556.1,2555.9,0.05867993]
[1729696351538,0.0367767,2556.0,2555.9,0.05867993]
[1729696351938,3.9491367,2556.0,2555.9,0.05867993]
[1729696352451,0.0367767,2556.0,2555.9,0.05867993]
[1729696353014,4.00987044,2556.2,2555.9,0.05867993]
[1729696353247,0.0367767,2556.0,2555.9,0.05867993]
[1729696353456,4.7756367,2556.0,2555.9,0.05867993]
[1729696353658,3.91251,2555.9,2555.8,3.0]
[1729696354257,3.9492867,2555.9,2555.8,3.0]
[1729696354620,0.0367767,2555.9,2555.8,3.0]
[1729696354821,3.9492867,2555.9,2555.8,3.0]
[1729696355020,7.49856774,2556.0,2555.8,3.0]
[1729696355241,0.03576313,2555.9,2555.8,3.0]
[1729696355442,3.94827313,2555.9,2555.8,3.0]
[1729696355646,4.04609291,2555.9,2555.8,3.0]
[1729696355847,0.13358291,2555.9,2555.8,3.0]
[1729696356126,4.04609291,2555.9,2555.8,3.0]
[1729696356322,0.03576313,2555.9,2555.8,3.0]
[1729696357165,3.94827313,2555.9,2555.8,3.0]
[1729696358164,0.03576313,2555.9,2555.8,3.0]
[1729696358769,4.04608886,2555.9,2555.8,3.0]
[1729696359847,3.94827313,2555.9,2555.8,3.0]
[1729696360158,4.04609353,2555.9,2555.8,3.0]
[1729696360664,4.81599353,2555.9,2555.8,3.0]
[1729696360875,0.7699,2555.8,2554.7,1.2139173]
[1729696361037,0.7699,2555.8,2554.5,5.5332064]
[1729696361038,3.58619774,2554.8,2554.6,0.07828008]
[1729696361365,0.03577453,2554.7,2554.6,4.40441709]
[1729696361573,7.92523636,2555.2,2554.7,3.91425]
[1729696361728,3.91381,2555.1,2554.6,4.32613389]
[1729696362326,8.36786405,2555.0,2554.4,4.0382988]
[1729696362526,0.09785896,2554.9,2554.4,0.1235588]
[1729696362764,4.01201896,2554.9,2554.4,4.0383688]
[1729696362968,3.91421,2554.8,2554.4,0.1235588]
[1729696363337,3.91445,2554.7,2554.4,0.1235588]
[1729696364034,0.09785899,2554.8,2554.4,5.21373601]
[1729696364380,3.91408,2554.9,2554.4,1.29901601]
[1729696364532,3.91382,2555.1,2554.4,5.21370601]
[1729696364736,3.91382,2555.1,2554.5,3.91464]
[1729696364936,3.91391,2555.0,2554.5,3.91464]
[1729696365173,4.01176134,2555.0,2554.6,0.5213656]
[1729696365373,3.91407,2554.9,2554.6,0.5213656]
[1729696365558,3.9143,2554.8,2554.4,1.29901601]
[1729696365759,3.91407,2554.9,2554.4,5.29208322]
[1729696365942,3.91427,2554.8,2554.4,1.29901601]
[1729696366137,3.91407,2554.9,2554.4,5.29208323]
[1729696366352,3.91354,2555.3,2554.5,0.92109766]
[1729696366557,3.91351,2555.3,2554.9,0.7568]
[1729696366852,14.01,2555.7,2555.0,3.99204374]
[1729696366853,3.91323,2555.5,2555.0,3.99204374]
[1729696367089,3.91323,2555.5,2555.0,3.91377]
[1729696367440,0.09784218,2555.6,2555.2,3.9135]
[1729696367635,7.92365683,2555.7,2555.2,4.30485]
[1729696367839,3.91275,2555.8,2555.3,4.66739]
[1729696368186,3.91275,2555.8,2555.3,8.33184619]
[1729696368343,4.01057306,2555.8,2555.3,8.25358774]
[1729696368545,3.91259,2555.9,2555.4,3.99143845]
[1729696368794,3.91259,2555.9,2555.4,3.91318]
[1729696369116,4.01052307,2555.8,2555.3,8.25370774]
[1729696369264,4.01052307,2555.8,2555.3,9.5154324]
[1729696369451,7.82524,2555.9,2555.4,3.91323]
[1729696369887,3.91259,2555.9,2555.4,3.91323]
[1729696370399,3.91198,2556.3,2555.4,3.91323]
[1729696370400,1.41297106,2556.4,2555.6,0.8115]
[1729696370688,4.00960557,2556.4,2555.9,3.9124]
[1729696370882,3.91203,2556.3,2555.7,3.97140452]
[1729696371091,3.91248,2556.0,2555.7,0.05868452]
[1729696371447,3.91266,2555.8,2555.7,0.05868452]
[1729696371793,4.01048232,2555.8,2555.7,0.05868452]
[1729696371940,3.91266,2555.8,2555.7,0.05868452]
[1729696372643,3.91252,2555.9,2555.7,0.05868452]
[1729696373075,4.0101923,2556.0,2555.7,0.05868452]
[1729696373285,11.02,2556.6,2555.7,4.64686241]
[1729696373286,0.09781234,2556.3,2555.7,4.64686241]
[1729696373588,3.91206,2556.2,2555.8,1.27361123]
[1729696373882,4.01005419,2556.1,2555.7,0.05868452]
[1729696374095,3.91249,2556.0,2555.7,0.05868452]
[1729696374391,3.91262,2555.9,2555.7,0.05868452]
[1729696374687,3.91259,2555.9,2555.7,0.05868452]
[1729696374843,4.01018234,2556.0,2555.7,0.05868452]
[1729696375272,0.09781939,2556.0,2555.7,0.05868452]
[1729696375487,3.91266,2555.8,2555.7,0.05868452]
[1729696375671,3.9126,2555.9,2555.7,0.05868452]
[1729696375877,0.9267235,2556.2,2555.7,0.05868452]
[1729696376186,3.91236,2556.0,2555.7,0.05868452]
[1729696376359,3.91251,2555.9,2555.7,0.05868452]
[1729696376558,3.91266,2555.8,2555.7,0.05868452]
[1729696376761,0.09781854,2555.9,2555.7,0.05868452]
[1729696376948,3.91266,2555.8,2555.7,0.05868452]
[1729696377986,3.91236,2556.0,2555.7,0.05868452]
[1729696378562,0.09781884,2556.1,2555.8,3.91266]
[1729696378761,4.52422669,2556.4,2555.8,3.91266]
[1729696378762,4.00971773,2556.3,2555.8,4.70108945]
[1729696378950,4.00971773,2556.3,2555.8,3.91266]
[1729696379155,4.00971773,2556.3,2555.8,3.91258]
[1729696379490,4.52422669,2556.4,2555.7,0.13693871]
[1729696379491,0.61239669,2556.4,2556.1,3.9122]
[1729696379652,11.01,2556.6,2556.0,3.91222]
[1729696379653,0.03455603,2556.2,2556.0,3.91222]
[1729696379851,3.9116,2556.5,2556.0,3.91222]
[1729696380053,0.0344478,2556.1,2556.0,3.91222]
[1729696380251,3.91212,2556.2,2555.9,0.816]
[1729696380455,3.91212,2556.2,2555.7,0.95663024]
[1729696380456,0.0344478,2556.1,2555.7,0.95663024]
[1729696380764,0.0344478,2556.1,2555.7,0.87838452]
[1729696380961,3.91238,2556.0,2555.7,0.87838452]
[1729696381349,3.91297,2555.6,2555.5,0.7654]
[1729696381549,3.91282,2555.7,2555.2,0.82409883]
[1729696381791,0.0344478,2555.6,2555.2,0.82409883]
[1729696381951,4.01103852,2555.5,2555.2,0.82409883]
[1729696382359,3.9477278,2555.4,2555.2,0.05869883]
[1729696382553,0.0344478,2555.4,2555.2,0.05869883]
[1729696383758,3.91343,2555.3,2555.2,0.05869883]
[1729696384075,4.04556365,2555.3,2555.2,0.05869883]
[1729696385499,3.9138,2555.1,2554.7,0.7735]
[1729696385995,0.03428828,2555.0,2554.7,3.7735]
[1729696386359,0.03428828,2555.0,2554.7,7.68785]
[1729696386734,0.03428828,2555.0,2554.8,0.05870033]
[1729696386895,4.04614173,2555.0,2554.8,0.05870033]
[1729696387092,0.13214173,2555.0,2554.8,0.05870033]
[1729696387278,0.03428828,2555.0,2554.8,0.05870033]
[1729696387656,3.91404,2554.9,2554.8,0.05870033]
[1729696388003,3.91404,2554.9,2554.5,0.8181]
[1729696388208,0.03428828,2554.8,2554.5,4.73268]
[1729696388374,4.01190727,2554.9,2554.5,4.73268]
[1729696388699,0.03428828,2554.8,2554.5,4.73268]
[1729696388902,0.03428828,2554.8,2554.6,0.05870385]
[1729696389396,3.91412,2554.9,2554.6,0.05870385]
[1729696389397,0.03428828,2554.7,2554.6,0.05870385]
[1729696389602,3.91412,2554.9,2554.6,0.05870385]
[1729696389803,0.03428828,2554.8,2554.6,0.05870385]
[1729696390106,0.03428828,2554.8,2554.5,0.8181]
[1729696390107,3.94849828,2554.8,2554.5,0.8181]
[1729696390259,0.03428828,2554.8,2554.5,0.8181]
[1729696390892,0.03428828,2554.8,2554.5,0.87681567]
[1729696391371,0.03428828,2554.8,2554.5,4.79146567]
[1729696391992,0.03428828,2554.8,2554.5,4.79140567]
[1729696392314,0.03428828,2554.8,2554.7,11.82388557]
[1729696392809,3.91328,2555.4,2554.9,3.91403]
[1729696392967,0.09783715,2555.3,2554.8,3.91408]
[1729696393172,3.91374,2555.1,2555.0,0.05870264]
[1729696393366,3.91365,2555.2,2555.0,0.05870264]
[1729696393595,3.91374,2555.1,2555.0,0.05870264]
[1729696393770,4.0115912,2555.1,2555.0,0.05870264]
[1729696398124,3.91366,2555.2,2555.0,0.05870264]
[1729696398426,4.01158656,2555.1,2555.0,0.05870264]
[1729696398727,4.81838656,2555.1,2555.0,0.05870264]
[1729696399519,3.91361,2555.2,2555.0,0.05870264]
[1729696399704,4.01159332,2555.1,2555.0,0.05870264]
[1729696400191,3.91359,2555.2,2555.0,0.05870264]
[1729696400377,0.09784238,2555.1,2555.0,0.05870264]
[1729696400812,3.91374,2555.1,2555.0,0.05870264]
[1729696401221,4.01158961,2555.1,2555.0,0.05870264]
[1729696402610,3.91359,2555.2,2555.0,0.05870264]
[1729696402611,3.91314,2555.5,2555.1,0.8227]
[1729696402787,3.91314,2555.5,2555.1,1.30222226]
[1729696402788,0.0978388,2555.5,2555.1,1.30222226]
[1729696402987,0.09783586,2555.6,2555.1,4.73635]
[1729696403188,4.01087586,2555.6,2555.1,4.73635]
[1729696403491,0.09783586,2555.6,2555.1,4.73635]
[1729696403715,4.01090586,2555.6,2555.1,4.73634]
[1729696404322,4.01090586,2555.6,2555.1,0.8227]
[1729696404520,4.01090586,2555.6,2555.0,3.97257264]
[1729696404521,3.91343,2555.3,2555.0,0.05870264]
[1729696404821,3.91359,2555.2,2555.0,0.05870264]
[1729696405895,0.09784313,2555.1,2555.0,0.05870264]
[1729696406090,3.91359,2555.2,2555.0,0.05870264]
[1729696406293,0.87275264,2555.5,2555.0,0.05870264]
[1729696406294,3.91374,2555.1,2555.0,0.05870264]
[1729696406537,4.01158805,2555.1,2555.0,0.05870264]
[1729696406758,3.91359,2555.2,2555.0,0.05870264]
[1729696406896,7.82726,2555.2,2555.0,0.05870264]
[1729696407525,4.0115881,2555.1,2555.0,0.05870264]
[1729696407731,3.91359,2555.2,2555.0,0.05870264]
[1729696408745,4.0113481,2555.3,2555.0,0.05870264]
[1729696409299,3.91365,2555.2,2555.0,0.05870264]
[1729696409896,3.91374,2555.1,2554.6,4.69681]
[1729696410139,4.01158809,2555.1,2554.6,4.69681]
[1729696410501,3.91397,2555.0,2554.6,0.7824]
[1729696410740,3.91397,2555.0,2554.6,4.69684]
[1729696411038,3.91397,2555.0,2554.6,0.7824]
[1729696411214,3.91411,2554.9,2554.6,0.7824]
[1729696411751,3.91397,2555.0,2554.6,4.6969]
[1729696414071,3.91397,2555.0,2554.6,0.7824]
[1729696414576,3.91397,2555.0,2554.6,4.69684]
[1729696414730,3.91369,2555.2,2554.8,3.91418]
[1729696415167,0.09784842,2555.1,2554.8,3.91418]
[1729696415368,3.91369,2555.2,2554.8,3.91418]
[1729696415688,4.01129842,2555.3,2554.8,3.91414]
[1729696415990,3.91363,2555.2,2554.8,3.91418]
[1729696416148,3.91345,2555.3,2554.8,3.91418]
[1729696416356,0.09784832,2555.2,2554.7,0.86701257]
[1729696416541,3.91345,2555.3,2554.9,3.91403]
[1729696416733,7.82697,2555.3,2555.0,0.05870085]
[1729696416935,0.09784835,2555.2,2555.0,0.05870085]
[1729696417363,0.7697,2555.1,2554.4,0.1235588]
[1729696417561,3.91419,2554.9,2554.4,0.1235588]
[1729696417762,0.09786679,2554.8,2554.4,0.1235588]
[1729696417948,3.91428,2554.8,2554.4,0.1235588]
[1729696418284,4.0122268,2554.7,2554.4,0.1235588]
[1729696418577,0.0978668,2554.7,2554.4,0.1235588]
[1729696418781,4.0122768,2554.7,2554.4,0.1235588]
[1729696419295,3.91454,2554.6,2554.4,0.1235588]
[1729696419485,0.09787074,2554.5,2554.4,0.1235588]
[1729696419981,4.81823074,2554.5,2554.4,0.1235588]
[1729696420136,4.81823074,2554.5,2554.3,0.00407333]
[1729696420137,7.74051,2554.4,2554.3,3.33e-06]
[1729696420450,7.74051,2554.4,2553.9,4.70299587]
[1729696420451,22.88874557,2554.4,2553.9,4.70299587]
[1729696420651,11.32745557,2554.0,2553.9,4.70299587]
[1729696421078,8.32745557,2554.0,2553.9,4.70299587]
[1729696421390,8.32745557,2554.0,2553.4,1.67438505]
[1729696421391,7.73999,2553.5,2553.4,1.67438505]
[1729696421586,4.73999,2553.5,2553.4,2.44498949]
[1729696421795,4.83790799,2553.5,2553.4,2.44498949]
[1729696422083,11.01,2553.9,2553.4,2.44498949]
[1729696422084,0.818,2553.9,2553.4,2.44498949]
[1729696422245,3.91611,2553.6,2553.4,2.44498949]
[1729696422439,3.91619,2553.5,2553.4,1.67438505]
[1729696422639,3.91606,2553.6,2553.4,1.67438505]
[1729696422859,4.01397208,2553.6,2553.4,1.67438505]
[1729696423062,0.09791208,2553.6,2553.4,1.67438505]
[1729696423296,4.01380161,2553.7,2553.4,1.67438505]
[1729696424409,3.91604,2553.6,2553.4,1.67438505]
[1729696424565,4.01410044,2553.5,2553.4,1.67438505]
[1729696425323,7.60233601,2553.5,2553.4,1.67438505]
[1729696425615,4.82060044,2553.5,2553.4,1.67438505]
[1729696425759,8.40883601,2553.5,2553.4,1.67438505]
[1729696425958,8.31092557,2553.5,2553.4,1.67438505]
[1729696426364,0.8065,2553.8,2553.4,1.67438505]
[1729696426562,3.91605,2553.6,2553.4,1.67438505]
[1729696426874,0.02,2554.2,2553.4,5.85531424]
[1729696426875,0.8065,2554.1,2553.4,5.85531424]
[1729696427176,4.01309721,2554.2,2553.6,0.7667]
[1729696427554,7.92800077,2554.3,2553.8,3.91565]
[1729696427836,7.92800077,2554.3,2553.7,3.91581]
[1729696427837,0.09788581,2554.2,2553.7,3.91581]
[1729696428141,0.09788581,2554.2,2553.6,4.87524111]
[1729696428142,4.01310581,2554.2,2553.6,4.87524111]
[1729696428289,3.91535,2554.1,2553.6,4.87524111]
[1729696428491,3.91558,2553.9,2553.6,0.95935111]
[1729696428679,0.09789884,2553.8,2553.6,0.95935111]
[1729696428881,0.09789884,2554.0,2553.6,0.95935111]
[1729696429325,3.91565,2553.9,2553.6,0.19265111]
[1729696429477,0.09789882,2553.8,2553.6,0.19265111]
[1729696429800,7.50360557,2554.1,2553.6,0.19265111]
[1729696429801,3.91537,2554.1,2553.6,4.18693017]
[1729696430126,0.09789078,2554.2,2553.7,0.43795813]
[1729696430289,3.91506,2554.3,2553.9,0.7818]
[1729696430290,4.0129457,2554.3,2553.9,0.7818]
[1729696430675,7.9280157,2554.3,2553.9,0.7818]
[1729696430875,0.09788542,2554.2,2553.9,0.7818]
[1729696431380,0.09788542,2554.2,2553.9,0.97445111]
[1729696431990,4.01302542,2554.2,2553.9,0.97445111]
[1729696432146,3.91505,2554.3,2553.9,0.97445111]
[1729696432347,4.01293541,2554.3,2553.9,0.97445111]
[1729696432753,0.09788531,2554.4,2553.9,4.89002111]
[1729696432957,3.91498,2554.3,2553.9,0.97445111]
[1729696433586,3.91498,2554.3,2553.9,4.89002111]
[1729696433893,3.91498,2554.3,2553.9,0.97445111]
[1729696434186,3.91476,2554.5,2553.9,0.19265111]
[1729696434187,3.9153,2554.1,2553.9,0.19265111]
[1729696434388,4.01330579,2554.0,2553.9,0.19265111]
[1729696435549,7.79340579,2554.0,2553.9,0.19265111]
[1729696435770,11.84375557,2554.0,2553.9,1.11e-06]
[1729696436409,11.84375557,2554.0,2553.5,0.19265111]
[1729696436410,7.71099,2553.5,2553.4,1.48173394]
[1729696436714,11.29922557,2553.5,2553.4,2.45629394]
[1729696437586,11.29922557,2553.5,2552.8,0.015]
[1729696437587,4.71191,2552.9,2552.8,0.015]
[1729696437905,8.39808604,2552.9,2552.8,0.015]
[1729696438206,8.30014557,2552.9,2552.8,0.015]
[1729696438709,7.71191,2552.9,2552.8,0.015]
[1729696439693,11.30014557,2552.9,2552.8,0.015]
[1729696440210,6.91726,2552.8,2552.7,1e-05]
[1729696440421,7.73354,2551.9,2551.8,1.41416461]
[1729696440622,7.50672557,2552.1,2551.8,1.41416461]
[1729696440822,0.09797002,2552.0,2551.8,1.86835263]
[1729696441320,3.92082,2550.5,2550.3,1.58355353]
[1729696441529,0.7546,2550.8,2550.3,1.58355353]
[1729696441530,3.58823557,2550.4,2550.3,1.58355353]
[1729696442219,3.92013,2551.0,2550.3,1.58355353]
[1729696442373,0.61366993,2550.7,2550.3,1.58355353]
[1729696442718,3.58823557,2550.7,2550.3,1.53355353]
[1729696443013,0.09801079,2551.0,2550.3,1.53355353]
[1729696443014,3.58823557,2550.4,2550.3,1.53355353]
[1729696443569,7.50918557,2550.4,2550.3,1.53355353]
[1729696444388,8.53304595,2550.4,2550.3,1.53355353]
[1729696444590,3.92095,2550.4,2550.3,1.53355353]
[1729696444773,4.01899006,2550.4,2550.3,1.53355353]
[1729696445909,3.92095,2550.4,2550.3,1.53355353]
[1729696446471,4.01883606,2550.5,2550.3,1.53355353]